bitfinex/quotes_SOLUSD_20251006
["timestamp","ask_amount","ask_price","bid_price","bid_amount"]
[1759757582573,29.8448414,233.97,233.96,1e-08]
[1759757582767,40.72131661,233.97,233.96,1e-08]
[1759757583761,40.72131661,233.97,233.93,0.2]
[1759757583762,20.8,233.94,233.93,1e-08]
[1759757583977,72.29805357,233.94,233.9,1e-08]
[1759757584151,15.64726439,233.91,233.9,1e-08]
[1759757584351,15.64726439,233.91,233.89,1e-08]
[1759757584566,4.77078918,233.9,233.89,1e-08]
[1759757584766,25.07533133,233.9,233.89,1e-08]
[1759757585078,9.04612051,233.9,233.89,1e-08]
[1759757585256,29.84612051,233.9,233.89,0.72000001]
[1759757585455,25.07533133,233.9,233.89,0.72000001]
[1759757585976,4.27533133,233.9,233.89,0.72000001]
[1759757586155,9.04612051,233.9,233.89,1e-08]
[1759757586355,19.92259572,233.9,233.89,1e-08]
[1759757586877,35.95235497,233.87,233.86,1e-08]
[1759757587103,35.95235497,233.87,233.85,1e-08]
[1759757587104,40.72314415,233.87,233.85,1e-08]
[1759757587258,4.77078918,233.86,233.85,1e-08]
[1759757587452,15.64726439,233.86,233.85,1e-08]
[1759757587668,15.64726439,233.86,233.79,1e-08]
[1759757587879,4.77078918,233.8,233.79,1e-08]
[1759757588056,46.78726439,233.8,233.79,1e-08]
[1759757588251,42.01647521,233.8,233.79,1e-08]
[1759757588454,46.78726439,233.8,233.79,1e-08]
[1759757589287,51.06442435,233.8,233.79,1e-08]
[1759757589590,55.83521353,233.8,233.79,1e-08]
[1759757590291,4.77078918,233.73,233.72,0.2]
[1759757590497,4.77078918,233.74,233.72,0.92]
[1759757590701,20.8,233.77,233.73,0.72]
[1759757591168,4.27789185,233.76,233.74,0.72]
[1759757591359,4.27789185,233.76,233.75,0.72]
[1759757591560,4.77078918,233.78,233.75,0.72]
[1759757591784,20.8,233.77,233.76,0.72]
[1759757591975,29.84853274,233.77,233.72,0.92]
[1759757592155,4.77078918,233.73,233.72,0.92]
[1759757592359,14.9720157,233.77,233.73,0.72]
[1759757592560,4.77078918,233.75,233.74,0.72]
[1759757592760,4.77078918,233.75,233.72,0.2]
[1759757592987,4.77078918,233.73,233.72,0.2]
[1759757593184,9.04923011,233.73,233.72,0.2]
[1759757593487,19.92570532,233.73,233.72,0.2]
[1759757594074,15.15491614,233.73,233.72,0.2]
[1759757594377,4.27844093,233.73,233.72,0.2]
[1759757594592,29.84923011,233.73,233.72,0.2]
[1759757595172,40.72570532,233.73,233.72,0.2]
[1759757595888,29.84923011,233.73,233.72,0.92]
[1759757596281,29.84923011,233.73,233.72,0.2]
[1759757597286,36.44726439,233.73,233.72,0.2]
[1759757597472,36.44726439,233.73,233.72,1e-08]
[1759757598182,20.8,233.65,233.61,0.7]
[1759757598380,4.77078918,233.62,233.61,0.7]
[1759757599091,4.77078918,233.62,233.58,0.7]
[1759757599092,7.07955408,233.62,233.58,0.7]
[1759757599295,7.07955408,233.62,233.59,0.7]
[1759757599662,7.07955408,233.6,233.57,0.7]
[1759757599891,10.87647521,233.6,233.57,0.7]
[1759757600094,7.07955408,233.58,233.54,0.7]
[1759757600266,7.07955408,233.58,233.36,20.0]
[1759757600267,10.87647521,233.54,233.49,0.7]
[1759757600468,10.87647521,233.54,233.39,2.23212062]
[1759757600469,20.8,233.47,233.42,0.7]
[1759757600686,17.95602929,233.5,233.42,0.7]
[1759757600687,31.67647521,233.5,233.42,0.7]
[1759757600892,7.07955408,233.43,233.33,0.1]
[1759757601089,20.8,233.5,233.33,0.1]
[1759757601090,7.07955408,233.47,233.33,0.1]
[1759757601298,20.8,233.5,233.33,0.1]
[1759757601299,7.07955408,233.48,233.33,0.1]
[1759757601479,7.07955408,233.48,233.34,0.7]
[1759757601798,7.07955408,233.51,233.35,10.87647521]
[1759757601977,52.08,233.53,233.33,0.1]
[1759757601978,20.8,233.53,233.37,10.87647521]
[1759757602179,20.8,233.65,233.42,20.8]
[1759757602487,10.87647521,233.56,233.43,0.7]
[1759757602695,10.87647521,233.56,233.43,21.5]
[1759757602885,7.07955408,233.53,233.44,0.7]
[1759757603079,10.87647521,233.56,233.44,0.7]
[1759757603282,7.07955408,233.51,233.44,0.7]
[1759757603676,7.07955408,233.54,233.44,0.7]
[1759757603872,10.87647521,233.56,233.44,0.7]
[1759757603873,7.07955408,233.52,233.44,0.7]
[1759757604088,7.07955408,233.51,233.44,0.7]
[1759757604281,20.8,233.55,233.44,0.7]
[1759757604485,10.87647521,233.59,233.44,0.7]
[1759757604705,10.87647521,233.63,233.44,0.7]
[1759757604995,7.07955408,233.59,233.45,31.67647521]
[1759757605181,7.07955408,233.58,233.46,0.7]
[1759757605673,31.32,233.67,233.48,20.8]
[1759757605894,7.07955408,233.64,233.52,20.8]
[1759757606088,7.07955408,233.64,233.53,0.7]
[1759757606286,33.38,233.88,233.53,0.7]
[1759757606484,7.07955408,233.65,233.53,0.7]
[1759757606993,7.07955408,233.63,233.53,0.7]
[1759757607193,10.87647521,233.7,233.53,0.7]
[1759757607398,20.8,233.67,233.53,0.7]
[1759757607601,7.07955408,233.68,233.54,10.87647521]
[1759757607798,7.07955408,233.68,233.55,0.7]
[1759757607977,7.07955408,233.67,233.55,0.7]
[1759757608299,7.07955408,233.66,233.55,0.7]
[1759757608498,7.07955408,233.67,233.55,0.7]
[1759757608700,10.87647521,233.8,233.57,20.8]
[1759757608906,7.07955408,233.68,233.58,0.7]
[1759757609087,20.8,233.72,233.58,0.7]
[1759757609401,7.07955408,233.66,233.58,0.7]
[1759757609780,7.07955408,233.67,233.58,0.7]
[1759757610179,20.8,233.72,233.54,0.7]
[1759757610403,7.07955408,233.61,233.54,0.7]
[1759757610580,7.07955408,233.64,233.54,0.7]
[1759757610774,31.67647521,233.68,233.54,0.7]
[1759757610978,7.07955408,233.67,233.55,10.87647521]
[1759757611178,20.8,233.73,233.57,10.87647521]
[1759757611477,7.07955408,233.72,233.58,0.7]
[1759757612001,7.07955408,233.69,233.59,31.34]
[1759757612200,7.07955408,233.69,233.6,0.7]
[1759757612404,10.87647521,233.72,233.6,0.7]
[1759757612709,10.87647521,233.72,233.57,20.8]
[1759757612893,10.87647521,233.72,233.58,0.7]
[1759757613202,7.07955408,233.66,233.58,0.7]
[1759757613402,7.07955408,233.65,233.58,0.7]
[1759757613590,7.07955408,233.67,233.58,0.7]
[1759757613779,10.87647521,233.72,233.58,0.7]
[1759757613976,7.07955408,233.68,233.58,0.7]
[1759757615206,7.07955408,233.63,233.58,31.3]
[1759757615395,7.07955408,233.61,233.42,20.0]
[1759757615601,20.8,233.64,233.46,32.0]
[1759757615802,7.07955408,233.6,233.49,20.8]
[1759757616101,10.87647521,233.63,233.5,31.99]
[1759757616299,10.87647521,233.63,233.51,0.69]
[1759757616491,7.07955408,233.6,233.51,0.69]
[1759757616687,10.87647521,233.63,233.51,0.69]
[1759757616892,10.87647521,233.61,233.51,0.69]
[1759757617297,17.95602929,233.61,233.52,31.3]
[1759757617502,7.07955408,233.64,233.53,0.69]
[1759757617682,7.07955408,233.76,233.53,0.69]
[1759757617683,7.07955408,233.65,233.53,0.69]
[1759757618007,17.95602929,233.67,233.55,20.8]
[1759757618211,17.95602929,233.67,233.56,0.69]
[1759757618517,7.07955408,233.66,233.56,0.69]
[1759757618709,10.87647521,233.69,233.57,31.32]
[1759757618884,10.87647521,233.69,233.58,0.69]
[1759757619089,7.07955408,233.7,233.58,0.69]
[1759757619287,33.38,233.88,233.6,20.8]
[1759757619619,31.32,233.87,233.62,31.67647521]
[1759757619791,7.07955408,233.8,233.63,0.69]
[1759757619991,7.07955408,233.78,233.63,0.69]
[1759757620505,7.07955408,233.79,233.63,0.69]
[1759757620679,31.32,233.87,233.63,0.69]
[1759757620680,27.87955408,233.8,233.67,20.8]
[1759757620890,7.07955408,233.82,233.71,20.8]
[1759757621084,7.07955408,233.92,233.72,0.69]
[1759757621309,10.87647521,233.91,233.72,0.69]
[1759757621486,7.07955408,233.8,233.72,0.69]
[1759757621811,10.87647521,233.84,233.73,31.34]
[1759757622020,7.07955408,233.82,233.74,0.69]
[1759757622418,7.07955408,233.92,233.74,0.69]
[1759757622419,7.07955408,233.83,233.74,0.69]
[1759757622816,7.07955408,233.85,233.74,0.69]
[1759757623125,7.07955408,233.84,233.75,31.32]
[1759757623325,7.07955408,233.83,233.75,31.32]
[1759757623638,7.07955408,233.84,233.76,0.69]
[1759757623840,10.87647521,233.86,233.76,0.69]
[1759757624030,7.07955408,233.85,233.76,0.69]
[1759757624217,10.87647521,233.86,233.76,0.69]
[1759757624415,0.2,233.96,233.78,20.8]
[1759757624621,7.07955408,233.91,233.79,0.69]
[1759757624837,0.2,233.96,233.83,20.8]
[1759757625142,7.27955408,233.96,233.84,0.69]
[1759757625731,7.07955408,233.95,233.84,0.69]
[1759757626051,7.07955408,233.92,233.85,31.3]
[1759757626235,7.07955408,233.92,233.84,0.69]
[1759757626443,10.87647521,233.94,233.86,31.3]
[1759757626744,7.07955408,233.93,233.86,31.3]
[1759757626942,11.07647521,233.96,233.87,0.69]
[1759757627144,0.2,233.96,233.87,0.69]
[1759757627641,0.2,233.96,233.89,20.8]
[1759757627848,7.07955408,233.95,233.9,31.3]
[1759757628048,7.07955408,233.93,233.88,31.3]
[1759757628639,10.87647521,233.95,233.86,31.3]
[1759757628640,7.07955408,233.91,233.86,31.3]
[1759757628815,10.87647521,233.95,233.86,31.3]
[1759757629027,7.07955408,233.92,233.86,31.3]
[1759757629632,7.07955408,233.94,233.86,31.3]
[1759757630644,7.07955408,233.92,233.87,31.28]
[1759757630820,7.07955408,233.93,233.87,31.28]
[1759757631146,0.2,233.96,233.84,0.68]
[1759757631346,7.07955408,233.93,233.88,31.26]
[1759757631719,7.07955408,233.92,233.88,31.26]
[1759757631937,7.07955408,233.91,233.84,0.68]
[1759757632252,7.07955408,233.91,233.85,31.26]
[1759757632448,7.07955408,233.91,233.86,0.68]
[1759757632632,7.07955408,233.91,233.85,31.26]
[1759757632822,7.07955408,233.91,233.85,31.94]
[1759757633026,7.07955408,233.91,233.85,0.68]
[1759757633225,7.07955408,233.89,233.84,8.38]
[1759757633459,10.87647521,233.93,233.85,0.68]
[1759757633751,10.87647521,233.93,233.84,8.38]
[1759757633752,7.07955408,233.9,233.84,8.38]
[1759757634123,10.87647521,233.93,233.83,0.68]
[1759757634323,7.07955408,233.89,233.84,20.6]
[1759757634625,10.87647521,233.93,233.75,20.8]
[1759757634826,17.95602929,233.93,233.85,0.68]
[1759757635027,0.2,233.96,233.86,31.24]
[1759757635363,0.2,233.96,233.87,0.68]
[1759757635932,0.2,233.96,233.88,31.26]
[1759757636154,0.2,233.96,233.89,31.24]
[1759757636355,0.2,233.96,233.89,31.92]
[1759757636643,0.2,233.96,233.9,0.68]
[1759757636944,0.2,233.96,233.91,31.24]
[1759757637151,0.2,233.96,233.92,0.68]
[1759757637754,0.2,233.96,233.93,0.68]
[1759757637938,0.2,233.96,233.91,31.24]
[1759757638140,0.2,233.96,233.92,0.68]
[1759757638339,0.2,233.96,233.93,0.68]
[1759757638538,0.2,233.96,233.94,0.68]
[1759757638740,0.2,233.96,233.95,0.68]
[1759757638937,0.2,234.1,233.95,0.68]
[1759757639437,7.07955408,234.1,233.95,0.68]
[1759757639641,7.07955408,234.11,233.95,0.68]
[1759757640259,0.2,234.14,233.99,20.8]
[1759757640449,0.2,234.14,233.96,10.87647521]
[1759757640450,0.2,234.14,234.04,20.8]
[1759757640658,0.2,234.14,234.08,20.8]
[1759757641063,0.1,234.24,234.13,20.8]
[1759757641235,0.1,234.24,234.17,20.8]
[1759757641531,0.1,234.24,234.21,20.8]
[1759757641746,0.1,234.24,234.15,0.68]
[1759757642144,0.1,234.24,234.19,20.8]
[1759757642342,0.1,234.24,234.16,0.68]
[1759757642548,7.17955408,234.24,234.18,31.32]
[1759757642744,17.95602929,234.23,234.16,0.68]
[1759757642930,7.07955408,234.21,234.15,31.32]
[1759757643134,7.07955408,234.19,234.13,32.0]
[1759757643343,7.07955408,234.18,234.09,0.68]
[1759757643542,10.87647521,234.19,234.09,0.68]
[1759757643766,10.87647521,234.18,234.1,18.12]
[1759757643961,10.87647521,234.18,234.01,10.87647521]
[1759757643962,17.95602929,234.18,234.06,0.68]
[1759757644164,17.95602929,234.18,234.07,27.18]
[1759757644343,7.47955408,234.17,234.06,0.68]
[1759757644545,7.47955408,234.17,233.93,23.39400951]
[1759757644546,7.07955408,234.14,234.02,0.68]
[1759757644762,7.07955408,234.14,234.03,31.32]
[1759757645072,18.35602929,234.16,234.04,0.68]
[1759757645276,7.07955408,234.18,234.04,0.68]
[1759757645578,10.87647521,234.22,234.06,20.8]
[1759757645876,17.95602929,234.22,234.07,0.68]
[1759757646079,7.07955408,234.21,234.07,0.68]
[1759757646370,7.07955408,234.21,234.08,31.32]
[1759757646538,21.2,234.23,234.09,0.68]
[1759757646539,0.4,234.23,234.09,0.68]
[1759757646743,17.95602929,234.2,234.1,20.8]
[1759757646974,17.95602929,234.2,234.1,41.86]
[1759757647366,17.95602929,234.2,234.11,31.32]
[1759757647572,10.87647521,234.2,234.11,31.32]
[1759757647800,7.17955408,234.24,234.12,0.68]
[1759757648000,10.87647521,234.23,234.12,0.68]
[1759757648502,10.97647521,234.24,234.12,0.68]
[1759757648702,0.1,234.24,234.14,20.8]
[1759757648868,0.1,234.24,234.15,0.68]
[1759757650276,0.1,234.24,234.16,52.12]
[1759757650592,0.1,234.24,234.17,31.32]
[1759757650784,10.97647521,234.24,234.16,20.8]
[1759757650983,0.1,234.24,234.17,31.32]
[1759757651378,7.07955408,234.22,234.16,20.8]
[1759757651585,7.07955408,234.23,234.16,31.32]
[1759757651767,0.1,234.24,234.17,0.68]
[1759757652170,0.1,234.24,234.19,20.8]
[1759757652396,0.1,234.24,234.2,0.68]
[1759757652576,0.1,234.24,234.21,0.68]
[1759757652778,0.1,234.24,234.22,0.68]
[1759757653672,0.1,234.24,234.23,0.68]
[1759757654197,0.1,234.24,234.23,31.36]
[1759757654702,0.1,234.24,234.22,31.38]
[1759757655290,0.1,234.24,234.19,0.68]
[1759757655481,0.1,234.24,234.1,20.8]
[1759757655672,0.1,234.24,234.17,0.68]
[1759757655888,0.1,234.24,234.18,31.36]
[1759757656114,0.1,234.24,234.19,0.68]
[1759757656305,0.1,234.24,234.18,31.36]
[1759757656478,0.1,234.24,234.2,0.68]
[1759757656676,0.1,234.24,234.21,0.68]
[1759757656994,0.1,234.24,234.22,0.68]
[1759757657484,0.1,234.24,234.23,0.68]
[1759757658008,0.1,234.24,234.23,32.04]
[1759757658219,0.1,234.24,234.22,20.8]
[1759757658371,0.1,234.24,234.23,31.36]
[1759757658570,0.1,234.24,234.23,32.06]
[1759757658912,0.1,234.24,234.23,31.36]
[1759757659276,0.1,234.24,234.23,32.06]
[1759757659782,0.1,234.24,234.23,0.7]
[1759757659997,0.1,234.24,234.23,31.34]
[1759757660588,0.1,234.24,234.23,32.04]
[1759757661409,10.87647521,234.35,234.23,32.04]
[1759757661605,15.63669094,234.36,234.24,0.7]
[1759757661804,4.76021573,234.34,234.24,0.7]
[1759757662003,4.76021573,234.34,234.2,20.8]
[1759757662004,10.87647521,234.32,234.21,0.7]
[1759757662203,4.76021573,234.28,234.22,31.32]
[1759757662392,16.13669094,234.28,234.23,31.32]
[1759757662598,15.63669094,234.28,234.23,31.32]
[1759757662796,4.76021573,234.26,234.15,0.7]
[1759757663115,0.5,234.27,234.15,0.7]
[1759757663116,5.26021573,234.27,234.16,31.32]
[1759757663287,4.76021573,234.26,234.15,21.5]
[1759757663492,4.76021573,234.26,234.14,33.28]
[1759757663493,4.76021573,234.23,234.16,31.32]
[1759757663694,4.76021573,234.2,234.16,31.32]
[1759757663894,4.76021573,234.21,234.16,31.32]
[1759757664609,4.76021573,234.2,234.12,0.7]
[1759757664790,4.76021573,234.2,234.17,31.3]
[1759757664990,4.76021573,234.18,234.09,0.7]
[1759757665324,4.76021573,234.18,234.1,31.3]
[1759757665618,4.76021573,234.18,234.11,0.7]
[1759757666706,4.76021573,234.18,234.12,31.3]
[1759757666913,4.76021573,234.17,234.07,0.7]
[1759757667096,4.76021573,234.16,234.11,20.8]
[1759757667294,10.87647521,234.22,234.11,20.8]
[1759757667295,10.87647521,234.2,234.11,20.8]
[1759757667497,0.5,234.21,234.11,21.5]
[1759757667723,4.76021573,234.21,234.12,0.7]
[1759757667920,4.76021573,234.2,234.12,0.7]
[1759757668726,4.76021573,234.22,234.12,0.7]
[1759757669602,4.76021573,234.21,234.13,31.28]
[1759757670122,4.76021573,234.18,234.07,3.53254244]
[1759757670305,0.5,234.2,234.08,31.96]
[1759757670511,4.76021573,234.15,234.08,21.5]
[1759757670827,4.76021573,234.17,234.09,31.98]
[1759757671022,4.76021573,234.17,234.08,20.8]
[1759757671023,4.76021573,234.15,234.08,20.8]
[1759757671197,4.76021573,234.15,234.1,31.26]
[1759757671521,10.87647521,234.18,234.06,3.53254244]
[1759757671729,4.76021573,234.11,234.07,31.28]
[1759757672093,4.76021573,234.12,234.07,31.28]
[1759757672524,10.87647521,234.17,234.08,0.7]
[1759757672703,4.76021573,234.15,234.08,0.7]
[1759757673114,4.76021573,234.22,234.1,20.8]
[1759757673115,10.87647521,234.21,234.1,20.8]
[1759757673300,4.76021573,234.2,234.11,0.7]
[1759757673699,4.76021573,234.19,234.11,0.7]
[1759757673925,2.22788848,234.31,234.11,0.7]
[1759757673926,4.76021573,234.18,234.11,0.7]
[1759757674097,4.76021573,234.18,234.1,20.8]
[1759757674305,4.76021573,234.17,234.11,31.28]
[1759757674825,4.76021573,234.18,234.11,31.28]
[1759757675705,4.76021573,234.17,234.11,31.28]
[1759757675908,4.76021573,234.15,234.12,31.26]
[1759757676119,4.76021573,234.15,234.13,31.26]
[1759757676630,10.87647521,234.13,234.07,3.53254244]
[1759757676927,4.76021573,234.08,234.02,34.79254244]
[1759757677100,4.76021573,234.1,234.03,0.69]
[1759757677300,4.76021573,234.11,234.03,4.22254244]
[1759757677524,4.76021573,234.12,234.03,4.22254244]
[1759757677734,4.76021573,234.12,234.04,4.22254244]
[1759757678029,0.5,234.19,234.05,4.22254244]
[1759757678201,10.87647521,234.16,234.06,4.22254244]
[1759757678405,10.87647521,234.16,234.02,31.26]
[1759757678406,4.76021573,234.16,234.08,3.53254244]
[1759757678714,4.76021573,234.12,234.09,31.3]
[1759757679033,4.76021573,234.1,234.05,3.53254244]
[1759757679214,4.76021573,234.11,234.07,31.3]
[1759757679543,4.76021573,234.11,234.08,31.3]
[1759757679743,4.76021573,234.13,234.08,31.3]
[1759757680107,4.76021573,234.12,234.08,31.3]
[1759757680420,4.76021573,234.11,234.08,31.3]
[1759757680619,4.76021573,234.1,234.08,31.3]
[1759757681508,16.13669094,234.09,234.04,3.53254244]
[1759757681824,4.76021573,234.05,234.02,3.53254244]
[1759757682146,4.76021573,234.03,234.02,34.83254244]
[1759757682310,4.76021573,234.03,234.02,31.3]
[1759757682834,4.76021573,234.03,233.99,4.71005659]
[1759757683037,4.76021573,234.01,234.0,3.56801519]
[1759757683208,4.76021573,234.01,234.0,34.84801519]
[1759757683410,4.76021573,234.03,234.0,31.28]
[1759757683624,4.76021573,234.04,234.0,31.28]
[1759757683817,10.87647521,234.04,234.0,31.28]
[1759757684217,10.87647521,234.04,234.01,31.28]
[1759757684418,10.87647521,234.04,233.99,3.57173575]
[1759757684709,15.63669094,234.04,233.99,3.57173575]
[1759757684913,15.63669094,234.04,234.0,31.26]
[1759757684914,4.76021573,234.04,234.0,31.26]
[1759757685340,10.87647521,234.05,234.0,31.26]
[1759757685520,4.76021573,234.04,234.0,31.26]
[1759757686328,4.76021573,234.02,233.98,3.57173575]
[1759757686535,4.76021573,234.0,233.96,3.57173575]
[1759757686732,4.76021573,234.0,233.97,31.26]
[1759757686943,4.76021573,234.01,233.97,31.26]
[1759757687431,0.5,234.03,233.98,4.26173575]
[1759757687432,20.8,234.03,233.98,4.26173575]
[1759757687845,4.76021573,234.02,233.97,34.83173575]
[1759757688012,4.76021573,234.01,233.96,3.57173575]
[1759757688215,20.8,234.03,233.96,4.28173575]
[1759757688409,10.87647521,234.04,233.97,35.52173575]
[1759757688410,4.76021573,234.04,233.97,35.52173575]
[1759757688941,20.8,234.05,233.97,35.52173575]
[1759757689133,20.8,234.05,233.98,4.28173575]
[1759757689318,20.8,234.05,233.99,0.71]
[1759757689724,10.87647521,234.08,233.99,0.71]
[1759757690039,28.15196318,234.22,234.0,3.57173575]
[1759757690040,0.5,234.14,234.0,3.57173575]
[1759757690222,4.76021573,234.12,234.02,3.57173575]
[1759757690414,4.76021573,234.13,234.04,3.57173575]
[1759757690615,19.04086292,234.36,234.05,31.95]
[1759757690818,0.5,234.28,234.06,4.28173575]
[1759757691012,0.5,234.28,234.08,20.8]
[1759757691013,0.5,234.27,234.08,20.8]
[1759757691231,4.76021573,234.18,234.09,0.71]
[1759757691640,4.76021573,234.19,234.09,0.71]
[1759757692618,4.76021573,234.18,234.09,0.71]
[1759757692940,4.76021573,234.1,234.05,3.56394677]
[1759757693150,20.8,234.14,234.09,31.28]
[1759757693151,21.3,234.14,234.09,31.28]
[1759757693320,4.76021573,234.1,234.08,31.28]
[1759757693517,4.76021573,234.12,234.08,31.28]
[1759757694049,20.8,234.14,234.09,0.71]
[1759757694217,20.8,234.14,234.1,0.71]
[1759757694540,4.76021573,234.11,234.09,31.28]
[1759757694931,20.8,234.14,234.09,31.28]
[1759757694932,4.76021573,234.12,234.09,31.28]
[1759757695452,4.76021573,234.11,234.09,31.28]
[1759757695638,4.76021573,234.1,234.09,31.28]
[1759757695942,4.76021573,234.1,234.03,3.56394677]
[1759757696146,4.76021573,234.09,234.04,31.28]
[1759757696650,4.76021573,234.09,234.02,4.27394677]
[1759757696651,4.76021573,234.06,234.02,4.27394677]
[1759757696829,10.87647521,234.12,234.03,31.28]
[1759757696830,4.76021573,234.05,234.03,31.28]
[1759757697152,20.8,234.11,234.03,31.28]
[1759757697153,4.76021573,234.1,234.04,0.71]
[1759757697557,25.56021573,234.11,234.04,0.71]
[1759757697742,4.76021573,234.1,234.04,0.71]
[1759757698060,25.56021573,234.11,234.04,0.71]
[1759757698563,4.76021573,234.11,234.04,0.71]
[1759757698933,25.56021573,234.12,234.04,0.71]
[1759757699140,25.56021573,234.12,234.05,31.26]
[1759757699835,4.76021573,234.08,234.01,0.71]
[1759757700042,4.76021573,234.09,234.05,31.26]
[1759757700240,0.5,234.19,234.06,0.71]
[1759757700444,25.56021573,234.15,234.06,0.71]
[1759757700643,20.8,234.15,234.06,0.71]
[1759757701362,20.8,234.15,233.99,20.8]
[1759757701363,4.76021573,234.09,234.07,31.26]
[1759757701541,4.76021573,234.08,234.06,31.26]
[1759757701737,4.76021573,234.12,234.07,0.71]
[1759757701946,4.76021573,234.13,234.08,0.71]
[1759757702358,4.76021573,234.17,234.09,0.71]
[1759757702862,4.76021573,234.15,234.06,3.56394677]
[1759757703064,4.76021573,234.13,234.07,31.3]
[1759757703447,4.76021573,234.09,234.04,4.27394677]
[1759757703655,4.76021573,234.09,234.08,31.3]
[1759757703942,4.76021573,234.09,234.01,20.8]
[1759757703943,11.37647521,234.09,234.01,3.56394677]
[1759757704153,4.76021573,234.04,234.01,31.3]
[1759757704366,4.76021573,234.07,234.01,31.3]
[1759757704540,20.8,234.11,234.02,0.71]
[1759757704740,4.76021573,234.07,234.01,31.3]
[1759757704956,4.76021573,234.07,234.02,31.3]
[1759757705153,4.76021573,234.09,234.03,0.71]
[1759757705665,4.76021573,234.11,234.03,4.27394677]
[1759757705975,4.76021573,234.09,234.04,31.32]
[1759757706641,25.56021573,234.05,234.01,3.56394677]
[1759757706837,16.13669094,234.08,233.92,34.11]
[1759757706838,20.8,234.01,233.96,3.56394677]
[1759757707070,20.8,234.01,233.94,3.56394677]
[1759757707071,4.76021573,234.0,233.94,3.56394677]
[1759757707241,20.8,234.01,233.95,0.71]
[1759757707444,20.8,234.03,233.95,0.71]
[1759757707646,4.76021573,234.0,233.96,31.38]
[1759757708046,0.5,233.99,233.93,3.56394677]
[1759757708245,10.87647521,234.01,233.94,31.38]
[1759757708450,11.37647521,234.03,233.94,31.38]
[1759757708686,4.76021573,233.99,233.94,31.38]
[1759757708971,4.76021573,234.01,233.94,32.09]
[1759757709269,4.76021573,233.95,233.92,0.1]
[1759757709478,0.5,234.0,233.92,0.1]
[1759757709479,4.76021573,233.93,233.92,0.1]
[1759757709780,16.13669094,233.93,233.92,0.1]
[1759757710077,11.37647521,233.93,233.92,0.1]
[1759757710245,16.13669094,233.93,233.92,0.1]
[1759757710643,31.67647521,233.89,233.76,4.37394677]
[1759757710844,4.76021573,233.82,233.77,15.14]
[1759757711044,4.76021573,233.84,233.78,0.71]
[1759757711258,20.8,233.88,233.78,0.71]
[1759757711259,4.76021573,233.85,233.78,0.71]
[1759757711671,4.76021573,233.83,233.78,0.71]
[1759757711871,4.76021573,233.83,233.79,0.71]
[1759757712372,4.76021573,233.85,233.8,0.71]
[1759757712578,4.76021573,233.85,233.8,32.15]
[1759757713081,4.76021573,233.85,233.81,0.71]
[1759757713373,4.76021573,233.85,233.8,31.44]
[1759757713556,0.5,233.93,233.81,0.71]
[1759757713757,25.56021573,233.9,233.81,0.71]
[1759757713979,25.56021573,233.9,233.76,0.1]
[1759757713980,4.76021573,233.87,233.76,0.1]
[1759757714295,4.76021573,233.84,233.76,0.81]
[1759757714573,4.76021573,233.82,233.77,31.42]
[1759757714788,21.3,233.86,233.77,31.44]
[1759757714789,4.76021573,233.8,233.77,31.44]
[1759757714966,21.3,233.86,233.77,32.15]
[1759757715167,4.76021573,233.82,233.77,32.15]